bitfinex-derivatives/quotes_BTCF0:USTF0_20250222
["timestamp","ask_amount","ask_price","bid_price","bid_amount"]
[1740257173927,0.2189959,96628.0,96627.0,0.24375316]
[1740257176326,0.2089959,96628.0,96627.0,0.24375316]
[1740257178525,0.002,96628.0,96627.0,0.24375316]
[1740257179033,0.2089959,96628.0,96627.0,0.24375316]
[1740257179232,0.002,96628.0,96627.0,0.24375316]
[1740257179822,0.2089959,96628.0,96627.0,0.24375316]
[1740257180430,0.002,96628.0,96627.0,0.24375316]
[1740257180638,0.002,96628.0,96627.0,0.25375316]
[1740257184732,0.002,96628.0,96627.0,0.61455316]
[1740257189945,0.36185769,96642.0,96641.0,0.206968]
[1740257190133,0.2069701,96642.0,96641.0,0.306888]
[1740257190339,0.2069701,96642.0,96641.0,0.398988]
[1740257191649,0.2069701,96642.0,96641.0,0.399988]
[1740257192551,0.21241203,96646.0,96645.0,0.2069595]
[1740257192752,0.41936933,96646.0,96645.0,0.2069595]
[1740257193551,0.41936933,96646.0,96645.0,0.2079595]
[1740257193736,0.21241203,96646.0,96645.0,0.2079595]
[1740257194142,0.21341203,96646.0,96645.0,0.2079595]
[1740257194748,0.42036933,96646.0,96645.0,0.2079595]
[1740257194944,0.42036933,96646.0,96645.0,0.5687595]
[1740257195550,0.42036933,96646.0,96645.0,0.5787595]
[1740257195745,0.21341203,96646.0,96645.0,0.5787595]
[1740257196444,0.42036933,96646.0,96645.0,0.5787595]
[1740257196646,0.21341203,96646.0,96645.0,0.5787595]
[1740257197053,0.42036933,96646.0,96645.0,0.5787595]
[1740257198558,0.21341203,96646.0,96645.0,0.5787595]
[1740257199160,0.42036933,96646.0,96645.0,0.5787595]
[1740257199454,0.21341203,96646.0,96645.0,0.5787595]
[1740257199663,0.00115516,96646.0,96645.0,0.5787595]
[1740257201452,0.20811246,96646.0,96645.0,0.5787595]
[1740257204652,0.20811246,96646.0,96645.0,0.6786795]
[1740257205053,0.20811246,96646.0,96645.0,0.6786395]
[1740257206752,0.00115516,96646.0,96645.0,0.6786395]
[1740257207152,0.20811246,96646.0,96645.0,0.6786395]
[1740257208561,0.00115516,96646.0,96645.0,0.6786395]
[1740257213056,0.20811246,96646.0,96645.0,0.6786395]
[1740257213456,0.00115516,96646.0,96645.0,0.6786395]
[1740257214165,0.20811246,96646.0,96645.0,0.6786395]
[1740257215365,0.00115516,96646.0,96645.0,0.6786395]
[1740257215564,0.20811246,96646.0,96645.0,0.6786395]
[1740257216461,0.00115516,96646.0,96645.0,0.6786395]
[1740257219472,0.20811246,96646.0,96645.0,0.6786395]
[1740257220472,0.00115516,96646.0,96645.0,0.6786395]
[1740257220670,0.20811246,96646.0,96645.0,0.6786395]
[1740257221973,0.00115516,96646.0,96645.0,0.864543]
[1740257222172,0.20811246,96646.0,96645.0,0.864543]
[1740257222371,0.00115516,96646.0,96645.0,0.864543]
[1740257222565,0.20811246,96646.0,96645.0,0.864543]
[1740257224274,0.20811246,96646.0,96645.0,0.6786395]
[1740257225678,0.20811246,96646.0,96645.0,0.3178395]
[1740257225874,0.20811246,96646.0,96645.0,0.6786395]
[1740257226481,0.23891246,96646.0,96645.0,0.6786395]
[1740257226784,0.23891246,96646.0,96645.0,0.5787595]
[1740257226985,0.23891246,96646.0,96645.0,0.6786395]
[1740257229274,0.23891246,96646.0,96645.0,0.6686395]
[1740257230484,0.23891246,96646.0,96645.0,0.46168]
[1740257230672,0.23891246,96646.0,96645.0,0.6686395]
[1740257231789,0.23891246,96646.0,96645.0,0.46168]
[1740257232095,0.23891246,96646.0,96645.0,0.6686395]
[1740257233182,0.24891246,96646.0,96645.0,0.6686395]
[1740257233789,0.24891246,96646.0,96645.0,0.3078395]
[1740257240289,0.24891246,96646.0,96645.0,0.001]
[1740257240590,0.60971246,96646.0,96645.0,0.10088]
[1740257242491,0.66003228,96646.0,96645.0,0.10088]
[1740257244994,0.66003228,96646.0,96645.0,0.001]
[1740257245188,0.2069766,96637.0,96636.0,0.18629354]
[1740257245499,0.2169766,96637.0,96636.0,0.18629354]
[1740257245693,0.3138766,96637.0,96636.0,0.18629354]
[1740257246199,0.6746766,96637.0,96636.0,0.18629354]
[1740257246986,0.6746766,96637.0,96636.0,0.003]
[1740257247194,0.6746766,96637.0,96629.0,0.09988]
[1740257247195,0.2069916,96630.0,96629.0,0.09988]
[1740257248489,0.2089916,96630.0,96629.0,0.10388]
[1740257250397,0.2189916,96630.0,96629.0,0.10388]
[1740257255103,0.5797916,96630.0,96629.0,0.10388]
[1740257255502,0.6097916,96630.0,96629.0,0.10388]
[1740257260104,0.6097916,96630.0,96629.0,0.004]
[1740257260403,0.2069959,96628.0,96627.0,0.00015516]
[1740257260710,0.2169959,96628.0,96627.0,0.00015516]
[1740257260911,0.2781959,96628.0,96627.0,0.00015516]
[1740257261798,0.2070194,96617.0,96616.0,0.0641]
[1740257262101,0.2170194,96617.0,96616.0,0.16398]
[1740257262407,0.2806194,96617.0,96616.0,0.16398]
[1740257263404,0.29105024,96617.0,96616.0,0.16398]
[1740257263600,0.29305024,96617.0,96616.0,0.16398]
[1740257264397,0.08603084,96617.0,96614.0,0.09988]
[1740257264604,0.2170237,96615.0,96614.0,0.09988]
[1740257265307,0.2070301,96612.0,96611.0,0.0642]
[1740257265503,0.2170301,96612.0,96611.0,0.16408]
[1740257265810,0.2170301,96612.0,96611.0,0.0642]
[1740257266808,0.2180301,96612.0,96611.0,0.0642]
[1740257267302,0.2190301,96612.0,96611.0,0.0642]
[1740257275619,0.2070387,96608.0,96607.0,0.10003524]
[1740257275818,0.2170387,96608.0,96607.0,0.13183524]
[1740257276711,0.2180387,96608.0,96607.0,0.13183524]
[1740257276914,0.2190387,96608.0,96607.0,0.16183524]
[1740257277809,0.2190387,96608.0,96607.0,0.00015524]
[1740257278119,0.2839387,96608.0,96607.0,0.00015524]
[1740257301528,0.2070494,96603.0,96602.0,0.16188]
[1740257301735,0.2170494,96603.0,96602.0,0.16188]
[1740257302731,0.2180494,96603.0,96602.0,0.16188]
[1740257303336,0.2190494,96603.0,96602.0,0.062]
[1740257306438,0.26939173,96603.0,96602.0,0.062]
[1740257308434,0.27957101,96603.0,96602.0,0.062]
[1740257309141,0.07252161,96603.0,96600.0,0.09988]
[1740257309339,0.5778537,96601.0,96600.0,0.09988]
[1740257309736,0.6088537,96601.0,96600.0,0.09988]
[1740257310443,0.6098537,96601.0,96600.0,0.09988]
[1740257312041,0.6108537,96601.0,96600.0,0.09988]
[1740257316950,0.6098537,96601.0,96600.0,0.09988]
[1740257317254,0.6108537,96601.0,96600.0,0.09988]
[1740257318244,0.2500537,96601.0,96600.0,0.09988]
[1740257318643,0.6108537,96601.0,96600.0,0.09988]
[1740257322054,0.84718139,96601.0,96600.0,0.09988]
[1740257329154,0.66119612,96601.0,96600.0,0.09988]
[1740257336766,0.30039612,96601.0,96600.0,0.09988]
[1740257337764,0.40517124,96601.0,96600.0,0.09988]
[1740257338559,0.40517124,96601.0,96600.0,0.3069359]
[1740257339868,0.40517124,96601.0,96600.0,0.09988]
[1740257340685,0.40517124,96601.0,96600.0,0.3069359]
[1740257342258,0.2500537,96601.0,96600.0,0.3069359]
[1740257345670,0.30039529,96601.0,96600.0,0.3069359]
[1740257350880,0.2500537,96601.0,96600.0,0.3069359]
[1740257354471,0.40515668,96601.0,96600.0,0.3069359]
[1740257355280,0.37415668,96601.0,96600.0,0.3069359]
[1740257358986,0.26939396,96601.0,96600.0,0.3069359]
[1740257365584,0.30089396,96601.0,96600.0,0.3069359]
[1740257366885,0.40566421,96601.0,96600.0,0.3069359]
[1740257370991,0.2505537,96601.0,96600.0,0.3069359]
[1740257374190,0.30089396,96601.0,96600.0,0.3069359]
[1740257377594,0.48706069,96601.0,96600.0,0.3069359]
[1740257378987,0.23850699,96601.0,96600.0,0.6677359]
[1740257379192,0.23850699,96601.0,96600.0,0.7091359]
[1740257379383,0.18860699,96601.0,96600.0,0.7091359]
[1740257379895,0.0517563,96615.0,96614.0,0.2587774]
[1740257380091,0.29128,96615.0,96614.0,0.7194574]
[1740257380292,0.30128,96615.0,96614.0,0.7194574]
[1740257382087,0.30228,96615.0,96614.0,0.7204574]
[1740257400210,0.30228,96615.0,96614.0,0.3596574]
[1740257404611,0.30228,96615.0,96614.0,0.3596174]
[1740257406920,0.2505237,96615.0,96614.0,0.3596174]
[1740257409937,0.2405237,96615.0,96614.0,0.3596174]
[1740257410137,0.2505237,96615.0,96614.0,0.3596174]
[1740257410333,0.2405237,96615.0,96614.0,0.3596174]
[1740257410529,0.2505237,96615.0,96614.0,0.3596174]
[1740257413232,0.2505237,96615.0,96614.0,0.3078616]
[1740257416741,0.2505237,96615.0,96614.0,0.49415514]
[1740257427540,0.2505237,96615.0,96614.0,0.3078616]
[1740257435961,0.2505237,96615.0,96614.0,0.10084]
[1740257436145,0.2505237,96615.0,96614.0,0.3078659]
[1740257437148,0.2505237,96615.0,96614.0,0.2080259]
[1740257437361,0.2505237,96615.0,96614.0,0.3078259]
[1740257438357,0.2505237,96615.0,96614.0,0.1008]
[1740257438661,0.2505237,96615.0,96614.0,0.3078259]
[1740257442151,0.0335,96615.0,96614.0,0.6686259]
[1740257442350,0.0335,96615.0,96614.0,0.6786259]
[1740257442546,0.15512485,96618.0,96617.0,0.2070194]
[1740257443363,0.16512485,96618.0,96617.0,0.2070194]
[1740257443658,0.37214215,96618.0,96617.0,0.2070194]
[1740257443962,0.40214215,96618.0,96617.0,0.3078194]
[1740257444854,0.2470173,96618.0,96617.0,0.45606435]
[1740257445055,0.2470173,96618.0,96617.0,0.55586435]
[1740257445657,0.2775173,96618.0,96617.0,0.55586435]
[1740257447659,0.2775173,96618.0,96617.0,0.3078194]
[1740257454663,0.2775173,96618.0,96617.0,0.31828497]
[1740257464378,0.2475173,96618.0,96617.0,0.31828497]
[1740257466485,0.2475173,96618.0,96617.0,0.3078194]
[1740257476286,0.25763943,96618.0,96617.0,0.3078194]
[1740257481704,0.25763943,96618.0,96617.0,0.49413623]
[1740257482403,0.2475173,96618.0,96617.0,0.49413623]
[1740257485297,0.40264215,96618.0,96617.0,0.3078194]
[1740257486192,0.41313882,96618.0,96617.0,0.3078194]
[1740257487599,0.41313882,96618.0,96617.0,0.1008]
[1740257487795,0.41313882,96618.0,96617.0,0.3078194]
[1740257490305,0.40264215,96618.0,96617.0,0.3078194]
[1740257492010,0.2475173,96618.0,96617.0,0.3078194]
[1740257494411,0.2798173,96618.0,96617.0,0.3078194]
[1740257505919,0.2798173,96618.0,96617.0,0.1008]
[1740257506216,0.2798173,96618.0,96617.0,0.3078194]
[1740257507919,0.2798173,96618.0,96617.0,0.1008]
[1740257508319,0.2798173,96618.0,96617.0,0.001]
[1740257508527,0.2798173,96618.0,96617.0,0.10076]
[1740257510119,0.2798173,96618.0,96617.0,0.001]
[1740257515732,0.2798173,96618.0,96617.0,0.2080194]
[1740257515933,0.2798173,96618.0,96617.0,0.001]
[1740257516920,0.2798173,96618.0,96617.0,0.2080194]
[1740257522228,0.2798173,96618.0,96617.0,0.001]
[1740257522825,0.2798173,96618.0,96617.0,0.2080194]
[1740257524536,0.2798173,96618.0,96617.0,0.001]
[1740257524730,0.2798173,96618.0,96617.0,0.2080194]
[1740257525725,0.2798173,96618.0,96617.0,0.001]
[1740257526130,0.2798173,96618.0,96617.0,0.2080194]
[1740257526538,0.2798173,96618.0,96617.0,0.001]
[1740257529030,0.43494215,96618.0,96617.0,0.001]
[1740257529237,0.43494215,96618.0,96617.0,0.2080194]
[1740257529426,0.43494215,96618.0,96617.0,0.001]
[1740257532341,0.2798173,96618.0,96617.0,0.001]
[1740257535633,0.2070301,96612.0,96611.0,0.18619165]
[1740257535844,0.5778301,96612.0,96611.0,0.18619165]
[1740257536140,0.2070387,96608.0,96607.0,0.09976]
[1740257536342,0.2170387,96608.0,96607.0,0.09976]
[1740257536536,0.2811387,96608.0,96607.0,0.09976]
[1740257536935,0.2791387,96608.0,96607.0,0.09976]
[1740257537537,0.2791387,96608.0,96607.0,0.3068009]
[1740257537938,0.2801387,96608.0,96607.0,0.3088009]
[1740257538643,0.2811387,96608.0,96607.0,0.3088009]
[1740257541146,0.2486387,96608.0,96607.0,0.3088009]
[1740257551451,0.2486387,96608.0,96607.0,0.10176]
[1740257552951,0.2486387,96608.0,96607.0,0.3088009]
[1740257560259,0.2386387,96608.0,96607.0,0.3088009]
[1740257560557,0.2486387,96608.0,96607.0,0.3088009]
[1740257568950,0.2811387,96608.0,96607.0,0.3088009]
[1740257571455,0.012,96608.0,96607.0,0.3088009]
[1740257571856,0.0352,96608.0,96607.0,0.3088009]
[1740257572764,0.0452,96608.0,96607.0,0.3088009]
[1740257572967,0.2522387,96608.0,96607.0,0.3088009]
[1740257576262,0.0452,96608.0,96607.0,0.3088009]
[1740257576467,0.2522387,96608.0,96607.0,0.3088009]
[1740257583369,0.2522387,96608.0,96607.0,0.2090409]
[1740257583572,0.2522387,96608.0,96607.0,0.3087609]
[1740257584760,0.2522387,96608.0,96607.0,0.91760585]
[1740257588876,0.2522387,96608.0,96607.0,0.55680585]
[1740257589079,0.2522387,96608.0,96607.0,0.91760585]
[1740257591380,0.2522387,96608.0,96607.0,0.85575009]
[1740257594578,0.2522387,96608.0,96607.0,0.6695609]
[1740257596880,0.2522387,96608.0,96607.0,0.3087609]
[1740257599677,0.2522387,96608.0,96607.0,0.10172]
[1740257600269,0.2522387,96608.0,96607.0,0.002]
[1740257600470,0.2522387,96608.0,96607.0,0.10172]
[1740257603278,0.2522387,96608.0,96607.0,0.3087609]
[1740257605979,0.2522387,96608.0,96607.0,0.6695609]
[1740257620586,0.2522387,96608.0,96607.0,0.46252]
[1740257620783,0.0452,96608.0,96604.0,0.24804495]
[1740257621086,0.2170451,96605.0,96604.0,0.24804495]
[1740257621582,0.2492451,96605.0,96604.0,0.24804495]
[1740257622378,0.2502451,96605.0,96604.0,0.24804495]
[1740257623584,0.2512451,96605.0,96604.0,0.24804495]
[1740257625391,0.2070601,96598.0,96597.0,0.5684617]
[1740257625590,0.2170601,96598.0,96597.0,0.5678617]
[1740257625804,0.2811601,96598.0,96597.0,0.5678617]
[1740257626287,0.2811601,96598.0,96597.0,0.3608]
[1740257626481,0.2070644,96596.0,96595.0,0.09968]
[1740257626682,0.2170644,96596.0,96595.0,0.09968]
[1740257626882,0.2481644,96596.0,96595.0,0.09968]
[1740257627287,0.25879332,96596.0,96595.0,0.09968]
[1740257628581,0.25979332,96596.0,96595.0,0.09968]
[1740257629187,0.26079332,96596.0,96595.0,0.09968]
[1740257630790,0.05372892,96596.0,96593.0,0.00015524]
[1740257630992,0.2170687,96594.0,96593.0,0.09983524]
[1740257632193,0.2180687,96594.0,96593.0,0.09983524]
[1740257632600,0.2180687,96594.0,96593.0,0.00015524]
[1740257634096,0.2190687,96594.0,96593.0,0.00015524]
[1740257640199,0.2190687,96594.0,96593.0,0.20722614]
[1740257640396,0.2190687,96594.0,96593.0,0.00015524]
[1740257644308,0.2190687,96594.0,96593.0,0.20722614]
[1740257651704,0.2190687,96594.0,96593.0,0.00015524]
[1740257655400,0.2190687,96594.0,96593.0,0.20722614]
[1740257656414,0.2190687,96594.0,96593.0,0.00015524]
[1740257658613,0.2190687,96594.0,96593.0,0.20722614]
[1740257662308,0.2190687,96594.0,96593.0,0.00015524]
[1740257666524,0.2190687,96594.0,96593.0,0.20722614]
[1740257667018,0.37427944,96594.0,96593.0,0.20722614]
[1740257667217,0.37427944,96594.0,96593.0,0.00015524]
[1740257670929,0.26941031,96594.0,96593.0,0.00015524]
[1740257675326,0.2190687,96594.0,96593.0,0.00015524]
[1740257686021,0.2190687,96594.0,96593.0,0.20722614]
[1740257691729,0.2190687,96594.0,96593.0,0.39362103]
[1740257692634,0.2190687,96594.0,96593.0,0.40417662]
[1740257695223,0.2190687,96594.0,96593.0,0.21778173]
[1740257695427,0.2090687,96594.0,96593.0,0.21778173]
[1740257695930,0.002,96594.0,96593.0,0.21778173]
[1740257696130,0.2090687,96594.0,96593.0,0.21778173]
[1740257696834,0.2190687,96594.0,96593.0,0.21778173]
[1740257697230,0.012,96594.0,96593.0,0.21778173]
[1740257697433,0.2190687,96594.0,96593.0,0.21778173]
[1740257703045,0.2190687,96594.0,96593.0,0.57858173]
[1740257703545,0.2190687,96594.0,96593.0,0.76494314]
[1740257706741,0.012,96594.0,96593.0,0.76494314]
[1740257706947,0.012,96594.0,96593.0,0.57858173]
[1740257707132,0.2190687,96594.0,96593.0,0.57858173]
[1740257708050,0.002,96594.0,96593.0,0.57858173]
[1740257708446,0.002,96594.0,96593.0,0.60948173]
[1740257708841,0.2090687,96594.0,96593.0,0.60948173]
[1740257709149,0.2190687,96594.0,96593.0,0.57858173]
[1740257711340,0.2190687,96594.0,96593.0,0.82662668]
[1740257712258,0.002,96594.0,96593.0,0.83662668]
[1740257712449,0.0517622,96604.0,96598.0,0.0517649]
[1740257712648,0.2688194,96601.0,96600.0,0.2588194]
[1740257713657,0.27997339,96601.0,96600.0,0.2588194]
[1740257714557,0.28097339,96601.0,96600.0,0.2588194]
[1740257716849,0.28097339,96601.0,96600.0,0.6196194]
[1740257717659,0.2708194,96601.0,96600.0,0.6196194]
[1740257721259,0.2708194,96601.0,96600.0,0.2588194]
[1740257721463,0.2708194,96601.0,96600.0,0.6196194]
[1740257730372,0.2708194,96601.0,96600.0,0.2588194]
[1740257730564,0.2708194,96601.0,96600.0,0.6196194]
[1740257768500,0.002,96601.0,96600.0,0.6296194]
[1740257777111,0.002,96601.0,96600.0,1.04805926]
[1740257780207,0.002,96601.0,96600.0,0.94010819]
[1740257781317,0.002,96601.0,96600.0,0.57930819]
[1740257781519,0.002,96601.0,96600.0,0.94010819]
[1740257784714,0.002,96601.0,96600.0,0.6296194]
[1740257788623,0.002,96601.0,96600.0,0.87800715]
[1740257792629,0.002,96601.0,96600.0,0.6296194]
[1740257794025,0.00015524,96605.0,96601.0,0.0517633]
[1740257794217,0.00015524,96605.0,96604.0,0.2170473]
[1740257796121,0.00015524,96605.0,96604.0,0.63626206]
[1740257796122,0.00115524,96605.0,96604.0,0.63626206]
[1740257796328,0.00215524,96605.0,96604.0,0.63626206]
[1740257796915,0.00215524,96605.0,96604.0,0.63726206]
[1740257797926,0.00215524,96605.0,96604.0,1.35886206]
[1740257800927,0.0638,96606.0,96604.0,1.15181476]
[1740257801234,0.0638,96606.0,96605.0,0.2170451]
[1740257802831,0.0648,96606.0,96605.0,0.2170451]
[1740257803534,0.0658,96606.0,96605.0,0.2190451]
[1740257807332,0.0658,96606.0,96605.0,0.2090451]
[1740257807534,0.0658,96606.0,96605.0,0.2190451]
[1740257807738,0.0658,96606.0,96605.0,0.46724911]
[1740257807938,0.0658,96606.0,96605.0,0.45724911]
[1740257808131,0.0658,96606.0,96605.0,0.55680911]
[1740257808435,0.272843,96606.0,96605.0,0.45724911]
[1740257808640,0.0658,96606.0,96605.0,0.56680911]
[1740257808829,0.272843,96606.0,96605.0,0.55680911]
[1740257809033,0.282843,96606.0,96605.0,0.45724911]
[1740257809233,0.282843,96606.0,96605.0,0.55680911]
[1740257811641,0.282843,96606.0,96605.0,0.3086051]
[1740257813843,0.219043,96606.0,96605.0,0.3086051]
[1740257814043,0.284243,96606.0,96605.0,0.3086051]
[1740257815235,0.284243,96606.0,96605.0,0.6694051]
[1740257815537,0.284243,96606.0,96605.0,0.5698451]
[1740257815731,0.284243,96606.0,96605.0,0.6694051]
[1740257818439,0.283243,96606.0,96605.0,0.6694051]
[1740257819745,0.282243,96606.0,96605.0,0.6694051]
[1740257819946,0.282243,96606.0,96605.0,0.3086051]
[1740257820150,0.282243,96606.0,96605.0,0.6694051]
[1740257837961,0.282243,96606.0,96605.0,0.91760911]
[1740257840857,0.282243,96606.0,96605.0,0.6694051]
[1740257841463,0.0752,96606.0,96605.0,0.6694051]
[1740257841660,0.00052001,96632.0,96605.0,0.47236]
[1740257841853,0.0658,96617.0,96614.0,0.5678259]
[1740257842058,0.0658,96617.0,96614.0,0.6673459]
[1740257842265,0.0658,96617.0,96614.0,0.6978459]
[1740257842661,0.01015524,96615.0,96614.0,0.6978459]
[1740257842861,0.00015524,96615.0,96614.0,0.6978459]
[1740257843165,0.00015524,96615.0,96614.0,0.71821185]
[1740257843362,0.01015524,96615.0,96614.0,0.71821185]
[1740257843865,0.01115524,96615.0,96614.0,0.71821185]
[1740257853771,0.00115524,96615.0,96614.0,0.71821185]
[1740257861577,0.00115524,96615.0,96614.0,0.35741185]
[1740257861778,0.00115524,96615.0,96614.0,0.71821185]
[1740257865681,0.00115524,96615.0,96614.0,0.35741185]
[1740257865881,0.00115524,96615.0,96614.0,0.71821185]
[1740257866881,0.00115524,96615.0,96614.0,0.35741185]
[1740257867079,0.00115524,96615.0,96614.0,0.71821185]
[1740257870882,0.00115524,96615.0,96614.0,0.96659518]
[1740257874280,0.00115524,96615.0,96614.0,0.93609518]
[1740257874884,0.00115524,96615.0,96614.0,0.68771185]
[1740257881287,0.0658,96617.0,96616.0,0.2070216]
[1740257881488,0.033,96621.0,96620.0,0.207013]
[1740257881687,0.033,96621.0,96620.0,0.217013]
[1740257881890,0.0303,96629.0,96623.0,0.2070066]
[1740257882089,0.0303,96629.0,96628.0,0.2069959]
[1740257882289,0.0303,96629.0,96628.0,0.2169959]
[1740257883886,0.0373,96629.0,96628.0,0.2169959]
[1740257884395,0.0413,96629.0,96628.0,0.2169959]
[1740257889184,0.0413,96629.0,96628.0,0.46485334]
[1740257890783,0.0413,96629.0,96628.0,1.18645334]
[1740257891881,0.00015524,96638.0,96628.0,1.18645334]
[1740257891882,0.00015524,96638.0,96628.0,0.97945744]
[1740257892088,0.0306,96643.0,96642.0,0.2069659]
[1740257892284,0.0632,96648.0,96647.0,0.2069552]
[1740257892493,0.0632,96648.0,96647.0,0.2169552]
[1740257893196,0.0632,96648.0,96647.0,0.2069552]
[1740257893388,0.0632,96648.0,96647.0,0.2169552]
[1740257893790,0.0682,96648.0,96647.0,0.2169552]
[1740257894285,0.0682,96648.0,96647.0,0.2179552]
[1740257894492,0.0752,96648.0,96647.0,0.2179552]
[1740257895793,0.0752,96648.0,96647.0,0.22854873]
[1740257898295,0.000155,96657.0,96647.0,0.02159353]
[1740257898510,0.000155,96657.0,96656.0,0.5777359]
[1740257898794,0.000155,96657.0,96656.0,0.7080159]
[1740257899600,0.004155,96657.0,96656.0,0.7080159]
[1740257900088,0.000155,96657.0,96656.0,0.7080159]
[1740257900283,0.007155,96657.0,96656.0,0.7080159]
[1740257901293,0.009155,96657.0,96656.0,0.7080159]
[1740257903098,0.009155,96657.0,96656.0,0.7090159]
[1740257922107,0.009155,96657.0,96656.0,0.89461703]
[1740257926215,0.009155,96657.0,96656.0,0.7090159]
[1740257929516,0.009155,96657.0,96656.0,0.95687334]
[1740257934025,0.009155,96657.0,96656.0,0.7090159]
[1740257935827,0.2160888,96657.0,96656.0,0.7090159]
[1740257937328,0.009155,96657.0,96656.0,0.7090159]
[1740257937920,0.2160888,96657.0,96656.0,0.7090159]
[1740257938228,0.2160888,96657.0,96656.0,0.89520476]
[1740257944232,0.2160888,96657.0,96656.0,0.54798886]
[1740257944436,0.2160888,96657.0,96656.0,0.64742886]
[1740257944747,0.2160888,96657.0,96656.0,0.54798886]
[1740257944934,0.22650985,96657.0,96656.0,0.18718886]
[1740257945228,0.2069423,96653.0,96652.0,0.24825182]
[1740257946426,0.2089423,96653.0,96652.0,0.24925182]
[1740257946826,0.2189423,96653.0,96652.0,0.24925182]
[1740257947032,0.2189423,96653.0,96652.0,0.001]
[1740257947837,0.2239423,96653.0,96652.0,0.001]
[1740257949127,0.4408423,96653.0,96652.0,0.001]
[1740257951038,0.4911568,96653.0,96652.0,0.001]
[1740257954145,0.4408423,96653.0,96652.0,0.001]
[1740257956940,0.4713423,96653.0,96652.0,0.001]
[1740257957646,0.4713423,96653.0,96645.0,0.09944]
[1740257957647,0.2069573,96646.0,96645.0,0.09944]
[1740257958043,0.206968,96641.0,96640.0,0.39342]
[1740257958341,0.216968,96641.0,96640.0,0.46024]
[1740257958543,0.216968,96641.0,96640.0,0.3608]
[1740257958737,0.249668,96641.0,96640.0,0.46024]
[1740257959346,0.0427,96641.0,96639.0,0.0322]
[1740257959551,0.2069723,96639.0,96638.0,0.09959524]
[1740257959735,0.2169723,96639.0,96638.0,0.09959524]
[1740257960447,0.2169723,96639.0,96638.0,0.30656964]
[1740257961238,0.2179723,96639.0,96638.0,0.30656964]
[1740257962349,0.2219723,96639.0,96638.0,0.30656964]
[1740257971749,0.2219723,96639.0,96638.0,0.00015524]
[1740257971947,0.23243577,96639.0,96638.0,0.00015524]
[1740257990251,0.28275754,96639.0,96638.0,0.00015524]
[1740257995266,0.2070087,96622.0,96621.0,0.50700932]
[1740257995466,0.2170087,96622.0,96621.0,0.61682696]
[1740257996571,0.2170087,96622.0,96621.0,0.61982696]
[1740257996764,0.2170087,96622.0,96621.0,0.62382696]
[1740257997861,0.2170087,96622.0,96621.0,0.73637514]
[1740257998365,0.2170087,96622.0,96621.0,0.37557514]
[1740257998563,0.2170087,96622.0,96621.0,0.79857514]
[1740257998763,0.2170087,96622.0,96621.0,0.79757514]
[1740257999167,0.2170087,96622.0,96621.0,0.79157514]
[1740257999367,0.2170087,96622.0,96621.0,0.43577514]
[1740257999570,0.2170087,96622.0,96621.0,0.79657514]
[1740258000466,0.00015524,96631.0,96630.0,0.2069916]
[1740258000665,0.00015524,96631.0,96630.0,0.6671916]
[1740258000871,0.00015524,96631.0,96630.0,0.7293916]
[1740258001167,0.20714464,96631.0,96630.0,0.7603916]
[1740258001567,0.21714464,96631.0,96630.0,0.7603916]
[1740258003173,0.21814464,96631.0,96630.0,0.7603916]
[1740258003373,0.21814464,96631.0,96630.0,0.7613916]
[1740258003774,0.21714464,96631.0,96630.0,0.7613916]
[1740258003975,0.21814464,96631.0,96630.0,0.7613916]
[1740258004572,0.21714464,96631.0,96630.0,0.7613916]
[1740258004776,0.21814464,96631.0,96630.0,0.7613916]
[1740258005275,0.21814464,96631.0,96630.0,0.7603916]
[1740258005473,0.21814464,96631.0,96630.0,0.7613916]
[1740258006276,0.01115524,96631.0,96630.0,0.7613916]
[1740258006475,0.00115524,96631.0,96630.0,0.7613916]
[1740258007473,0.01115524,96631.0,96630.0,0.7613916]
[1740258008278,0.01115524,96631.0,96630.0,0.7603916]
[1740258008577,0.01115524,96631.0,96630.0,0.7613916]
[1740258008780,0.01115524,96631.0,96630.0,0.4005916]
[1740258008971,0.01115524,96631.0,96630.0,0.7613916]
[1740258009172,0.00115524,96631.0,96630.0,0.7613916]
[1740258009470,0.01115524,96631.0,96630.0,0.7603916]
[1740258009670,0.00115524,96631.0,96630.0,0.7613916]
[1740258009872,0.01115524,96631.0,96630.0,0.7613916]
[1740258011168,0.00115524,96631.0,96630.0,0.7613916]
[1740258011369,0.01115524,96631.0,96630.0,0.7613916]
[1740258011975,0.21814464,96631.0,96630.0,0.7613916]
[1740258012578,0.21814464,96631.0,96630.0,0.6619916]
[1740258012877,0.21814464,96631.0,96630.0,0.7613916]
[1740258013070,0.21814464,96631.0,96630.0,0.3618]
[1740258013275,0.28334464,96631.0,96630.0,0.4612]
[1740258013679,0.28334464,96631.0,96630.0,0.3618]
[1740258014577,0.28334464,96631.0,96630.0,0.5687916]
[1740258016464,0.24084464,96631.0,96630.0,0.5687916]
[1740258017773,0.25084464,96631.0,96630.0,0.5687916]
[1740258018874,0.25084464,96631.0,96630.0,0.6681916]
[1740258033387,0.25084464,96631.0,96630.0,0.3073916]
[1740258033588,0.25084464,96631.0,96630.0,0.6681916]
[1740258038081,0.26100563,96631.0,96630.0,0.1004]
[1740258038286,0.29160563,96631.0,96630.0,0.1004]
[1740258038483,0.29160563,96631.0,96630.0,0.001]
[1740258041198,0.50850563,96631.0,96630.0,0.001]
[1740258044006,0.50850563,96631.0,96627.0,0.24825182]
[1740258044007,0.2069959,96628.0,96627.0,0.24825182]
[1740258044307,0.0517511,96624.0,96612.0,0.03305524]
[1740258044615,0.207028,96613.0,96612.0,0.00015524]
[1740258044801,0.217028,96613.0,96612.0,0.00015524]
[1740258045001,0.281528,96613.0,96612.0,0.00015524]
[1740258045206,0.29176787,96613.0,96612.0,0.00015524]
[1740258045406,0.281528,96613.0,96612.0,0.00015524]
[1740258046810,0.281528,96613.0,96612.0,0.00515524]
[1740258047419,0.281528,96613.0,96612.0,0.00215524]
[1740258051209,0.498428,96613.0,96612.0,0.00215524]
[1740258051508,0.2070323,96611.0,96610.0,0.00155243]
[1740258051713,0.2170323,96611.0,96610.0,0.00155243]
[1740258053713,0.2170323,96611.0,96610.0,0.00255243]
[1740258054117,0.2170323,96611.0,96610.0,0.00555243]
[1740258054314,0.2170323,96611.0,96610.0,0.004]
[1740258054519,0.2070516,96602.0,96601.0,0.00015524]
[1740258054721,0.2170516,96602.0,96601.0,0.00015524]
[1740258055115,0.2497516,96602.0,96601.0,0.00015524]
[1740258055726,0.2507516,96602.0,96601.0,0.00415524]
[1740258056828,0.2507516,96602.0,96601.0,0.00815524]
[1740258060311,0.2407516,96602.0,96601.0,0.00815524]
[1740258060511,0.2507516,96602.0,96601.0,0.00815524]
[1740258066331,0.2080516,96602.0,96601.0,0.21520894]
[1740258067522,0.2180516,96602.0,96601.0,0.21520894]